bitfinex/quotes_ETHUSD_20240603
["timestamp","ask_amount","ask_price","bid_price","bid_amount"]
[1717396927984,2.60587,3837.5,3836.7,5.2128]
[1717396928369,3.35587,3837.5,3836.7,5.2128]
[1717396930199,2.60608,3837.2,3836.7,5.2128]
[1717396931100,2.60582,3837.6,3836.8,0.03478688]
[1717396931297,0.75,3837.5,3836.9,6.20283869]
[1717396931463,0.75,3837.5,3837.0,0.03472244]
[1717396931800,0.75,3837.5,3837.1,5.2123]
[1717396932101,0.75,3837.5,3837.1,5.24699022]
[1717396932502,1.31342636,3837.5,3837.1,5.24699022]
[1717396932804,0.75,3837.5,3837.1,5.24699022]
[1717396932972,2.60594,3837.4,3837.1,5.24699022]
[1717396936499,2.866534,3837.4,3837.1,5.24699022]
[1717396937872,3.616534,3837.4,3837.1,5.24699022]
[1717396938576,2.60606,3837.2,3837.1,5.24699022]
[1717396938780,3.15606,3837.2,3837.1,5.2123]
[1717396939068,3.15606,3837.2,3837.1,5.2467496]
[1717396939274,3.5727254,3837.2,3837.1,5.2467496]
[1717396940907,3.0227254,3837.2,3837.1,5.2467496]
[1717396941610,6.0227254,3837.2,3837.1,5.2467496]
[1717396941779,6.58621429,3837.2,3837.1,5.2123]
[1717396941979,6.58621429,3837.2,3837.1,5.2467496]
[1717396944798,7.13621429,3837.2,3837.1,5.2467496]
[1717396944997,7.13621429,3837.2,3837.1,5.2123]
[1717396945299,9.74227429,3837.2,3837.1,5.24679333]
[1717396948218,1.23522743,3837.1,3835.5,4.9273]
[1717396948401,1.23522743,3837.1,3834.5,2.60789]
[1717396948402,2.60722,3835.5,3834.5,2.60789]
[1717396948782,2.60722,3835.5,3834.6,0.96497]
[1717396949784,3.35722,3835.5,3834.6,0.96497]
[1717396949990,3.692942,3835.5,3834.6,0.96497]
[1717396951389,3.35722,3835.5,3834.6,0.96497]
[1717396953405,2.60722,3835.5,3834.7,4.558]
[1717396953602,2.60722,3835.5,3834.8,0.96502]
[1717396953831,2.60722,3835.5,3834.8,0.99910497]
[1717396954345,2.60694,3836.0,3834.8,0.99910497]
[1717396954535,2.6066,3836.5,3835.0,4.8441]
[1717396954703,2.6066,3836.5,3835.2,4.8441]
[1717396954906,2.6066,3836.5,3835.3,0.99881372]
[1717396955105,0.75,3835.8,3835.3,0.99881372]
[1717396955309,2.6066,3836.5,3835.3,0.99881372]
[1717396955549,3.3566,3836.5,3835.4,0.64272342]
[1717396955844,2.6066,3836.5,3835.5,0.96484]
[1717396956137,3.3566,3836.5,3835.5,0.96484]
[1717396956643,3.3566,3836.5,3835.6,0.03382699]
[1717396956823,3.3566,3836.5,3835.7,0.96479]
[1717396957018,3.3566,3836.5,3835.7,0.99858475]
[1717396957219,3.3566,3836.5,3835.7,1.16271557]
[1717396959274,3.3566,3836.5,3835.7,0.99858475]
[1717396959547,2.60679,3836.2,3835.7,0.99858475]
[1717396959708,2.60701,3835.8,3835.7,0.99858475]
[1717396959904,2.60701,3835.8,3835.7,0.96479]
[1717396960113,3.90701,3835.8,3835.7,0.96479]
[1717396960410,4.483711,3835.8,3835.7,0.96479]
[1717396960810,7.483711,3835.8,3835.7,0.96479]
[1717396965367,6.933711,3835.8,3835.7,0.96479]
[1717396965562,6.35701,3835.8,3835.7,0.99921108]
[1717396965772,6.35701,3835.8,3835.7,0.96479]
[1717396966844,6.90701,3835.8,3835.7,0.96479]
[1717396967165,9.51402,3835.8,3835.7,0.96479]
[1717396967327,14.9057858,3835.8,3835.7,0.96479]
[1717396967531,16.84304738,3835.8,3835.7,0.96479]
[1717396968570,14.23603738,3835.8,3835.7,0.96479]
[1717396968874,16.84304738,3835.8,3835.7,0.96479]
[1717396970035,9.40805349,3835.8,3835.7,0.96479]
[1717396973136,9.40805349,3835.8,3835.7,0.99952302]
[1717396975493,9.40805349,3835.8,3835.7,0.96479]
[1717396981599,12.01506349,3835.8,3835.7,0.96479]
[1717396983252,12.01509017,3835.8,3835.7,0.96479]
[1717396983495,12.01509017,3835.8,3834.3,4.6286]
[1717396983496,2.60796,3834.5,3834.3,4.6286]
[1717396983851,2.60796,3834.5,3834.4,0.03525078]
[1717396984221,2.60796,3834.5,3834.3,4.6286]
[1717396985072,2.60796,3834.5,3833.6,4.9856]
[1717396985420,2.60796,3834.5,3833.7,0.03547665]
[1717396985560,3.35796,3834.5,3833.7,0.79843532]
[1717396991202,3.35796,3834.5,3833.7,0.03547665]
[1717396992284,3.35796,3834.5,3833.6,4.9856]
[1717396993409,0.75,3834.5,3833.9,2.6083]
[1717396993616,3.0,3834.8,3834.0,4.9976]
[1717396993912,3.0,3834.8,3834.1,0.76059]
[1717396994212,2.60769,3834.9,3834.2,2.64381774]
[1717396994416,3.35769,3834.9,3834.3,0.776]
[1717396994620,7.28,3835.1,3834.4,0.41804077]
[1717396994914,7.28,3835.1,3834.5,7.42457]
[1717396995271,7.28,3835.1,3834.6,0.03547097]
[1717396999587,2.60753,3835.1,3834.6,0.03547097]
[1717396999789,7.28,3835.6,3834.1,4.6335]
[1717396999790,2.60771,3834.8,3834.1,4.6335]
[1717397000003,2.60771,3834.8,3834.7,0.03541134]
[1717397000318,3.15771,3834.8,3834.1,4.6335]
[1717397000693,3.15771,3834.8,3834.2,0.03564108]
[1717397001236,2.60771,3834.8,3834.2,0.03564108]
[1717397001915,2.60792,3834.5,3834.2,0.03564108]
[1717397002441,2.60792,3834.5,3834.3,0.03560882]
[1717397002615,2.60792,3834.5,3833.7,4.6335]
[1717397002781,2.60792,3834.5,3834.4,0.03557655]
[1717397002981,2.60792,3834.5,3833.7,5.357706]
[1717397003186,2.60792,3834.5,3834.4,0.03557655]
[1717397003400,2.60792,3834.5,3833.7,5.357706]
[1717397003600,2.60792,3834.5,3834.4,0.03557655]
[1717397003806,2.60792,3834.5,3833.7,5.357706]
[1717397004004,2.60792,3834.5,3834.4,0.03557655]
[1717397004353,2.60792,3834.5,3833.7,5.357706]
[1717397004691,2.60792,3834.5,3833.8,0.03577015]
[1717397006136,2.60792,3834.5,3833.8,0.48785397]
[1717397009002,2.6077,3834.8,3833.8,3.09622397]
[1717397009236,2.6077,3834.8,3834.1,2.60817]
[1717397009589,7.28,3835.0,3834.2,4.6077]
[1717397009839,8.03,3835.0,3834.2,4.6077]
[1717397010134,7.28,3835.0,3834.2,4.6434506]
[1717397010296,7.28,3835.0,3834.2,5.36861266]
[1717397011311,2.60749,3835.1,3834.2,5.36861266]
[1717397011511,3.35749,3835.1,3834.2,5.36861266]
[1717397013642,3.35749,3835.1,3834.3,2.60801]
[1717397013929,2.60749,3835.1,3834.4,0.79766227]
[1717397014129,2.60749,3835.1,3834.4,0.83334834]
[1717397014315,0.75,3835.3,3834.5,2.60789]
[1717397014775,0.75,3835.3,3834.6,0.03549288]
[1717397017243,0.75,3835.3,3834.6,0.3795974]
[1717397017435,0.75,3835.4,3834.6,0.3795974]
[1717397018032,0.776,3835.3,3834.6,0.3795974]
[1717397019648,0.776,3835.1,3834.6,0.03549288]
[1717397019851,0.776,3835.1,3834.2,4.6077]
[1717397019852,0.776,3834.8,3834.2,4.6077]
[1717397020069,0.776,3834.8,3834.7,0.03526078]
[1717397020225,0.776,3835.0,3834.2,4.6077]
[1717397020424,0.776,3835.0,3834.7,0.03526078]
[1717397020666,0.776,3835.0,3834.2,4.6077]
[1717397020862,0.776,3835.0,3834.8,0.03522852]
[1717397021024,0.776,3835.0,3834.2,4.6077]
[1717397021371,0.776,3835.0,3834.9,0.03519627]
[1717397021669,1.2432162,3835.0,3834.2,4.6077]
[1717397021867,0.776,3835.0,3834.9,0.03519627]
[1717397022110,4.672162,3835.2,3834.2,4.6077]
[1717397022309,5.422162,3835.2,3834.2,4.6077]
[1717397022513,5.422162,3835.2,3834.3,2.64346278]
[1717397022811,3.35742,3835.2,3834.3,2.64346278]
[1717397022967,4.13342,3835.2,3834.3,2.64346278]
[1717397024272,3.35742,3835.2,3834.3,2.64346278]
[1717397024525,4.13342,3835.2,3834.3,2.64346278]
[1717397024674,2.60742,3835.2,3834.5,4.571]
[1717397024870,2.60742,3835.2,3834.6,0.035356]
[1717397026013,0.776,3835.3,3834.6,2.643176]
[1717397027410,0.776,3835.1,3834.6,0.035356]
[1717397032902,0.75,3835.2,3834.6,0.035356]
[1717397033108,0.776,3835.1,3834.6,0.035356]
[1717397034720,3.38349,3835.1,3834.6,0.035356]
[1717397035036,0.776,3834.9,3834.6,0.035356]
[1717397035599,0.776,3834.9,3834.2,7.5834]
[1717397035796,0.776,3834.9,3834.7,0.03529909]
[1717397036034,0.776,3834.9,3834.2,7.5834]
[1717397036245,0.776,3834.9,3834.8,0.03526683]
[1717397036548,1.1481839,3834.9,3834.8,0.03526683]
[1717397036704,1.1481839,3834.9,3834.2,7.5834]
[1717397036905,1.1481839,3834.9,3834.3,0.03542813]
[1717397037326,2.6077,3834.8,3834.3,0.03542813]
[1717397037626,0.776,3834.5,3833.8,7.58361]
[1717397037963,2.6077,3834.8,3833.8,7.58361]
[1717397037964,0.776,3834.7,3833.9,0.0355572]
[1717397038449,0.776,3834.7,3833.8,7.58361]
[1717397038450,2.60784,3834.6,3833.8,7.58361]
[1717397042458,0.776,3834.5,3833.8,7.58361]
[1717397043628,2.60784,3834.6,3833.8,7.58361]
[1717397044768,2.60784,3834.6,3832.9,4.7677]
[1717397044769,1.22901023,3834.6,3832.9,4.7677]
[1717397044922,1.22901023,3834.6,3832.8,3.0]
[1717397044923,1.22901023,3834.6,3833.6,4.7677]
[1717397045126,0.776,3834.6,3833.6,4.7677]
[1717397045327,0.77407839,3834.8,3833.7,0.03569291]
[1717397045664,1.526,3834.7,3833.7,0.03569291]
[1717397046443,2.60784,3834.6,3833.7,0.81169291]
[1717397046836,0.776,3834.8,3833.8,7.43076]
[1717397047072,0.776,3834.8,3833.9,0.82424529]
[1717397047372,0.776,3834.8,3834.0,2.60822]
[1717397047749,0.776,3834.8,3834.1,0.03556383]
[1717397048242,2.60763,3834.9,3834.1,0.03556383]
[1717397049438,1.526,3834.8,3834.1,0.03556383]
[1717397049776,8.056,3835.3,3834.5,2.60786]
[1717397049983,2.60714,3835.7,3834.5,2.60786]
[1717397050192,0.776,3835.2,3834.6,0.03540251]
[1717397050481,0.33833,3835.1,3834.6,0.03540251]
[1717397050660,0.776,3835.2,3834.6,0.03540251]
[1717397051333,3.0,3835.6,3834.6,0.03540251]
[1717397051334,0.776,3835.0,3834.6,0.03540251]
[1717397051538,2.6075,3835.1,3834.6,0.03540251]
[1717397051762,0.776,3834.9,3834.3,4.9596]
[1717397052070,0.776,3834.9,3834.7,0.03537026]
[1717397052276,0.776,3834.9,3834.3,4.9596]
[1717397052482,0.776,3834.9,3834.8,0.035338]
[1717397052691,3.3835,3835.1,3834.3,4.9596]
[1717397052886,3.3835,3835.1,3834.3,5.33762191]
[1717397053040,3.3835,3835.1,3834.4,0.03546703]
[1717397053985,2.60727,3835.5,3834.5,2.60789]
[1717397054324,0.776,3835.1,3834.5,2.60789]
[1717397054474,0.776,3835.1,3834.6,0.03540251]
[1717397057992,2.60756,3835.0,3834.6,0.03540251]
[1717397058378,2.60756,3835.0,3834.3,4.9596]
[1717397058680,0.776,3834.9,3834.7,0.03532646]
[1717397058862,0.776,3834.9,3834.3,4.9596]
[1717397059068,0.776,3834.9,3834.8,0.0352942]
[1717397059266,0.776,3834.9,3834.3,4.9596]
[1717397059488,0.776,3834.9,3834.8,0.0352942]
[1717397060161,2.60756,3835.0,3834.3,4.9596]
[1717397060360,2.60756,3835.0,3834.3,5.716373]
[1717397060672,2.60735,3835.4,3834.4,2.64338323]
[1717397061070,2.60735,3835.4,3834.4,2.60796]
[1717397061260,3.38335,3835.4,3834.4,2.60796]
[1717397061459,3.38335,3835.4,3834.6,2.60782]
[1717397061760,3.38335,3835.4,3834.7,0.03532646]
[1717397061959,2.60735,3835.4,3834.7,0.03532646]
[1717397062785,2.60735,3835.4,3834.8,4.8367]
[1717397062996,2.60709,3835.7,3834.8,4.8367]
[1717397063179,1.526,3835.6,3834.9,0.03526195]
[1717397063562,0.776,3835.6,3834.9,0.03526195]
[1717397064193,0.776,3835.6,3834.9,2.64288195]
[1717397064398,7.28,3835.9,3834.9,2.64288195]
[1717397064585,8.03,3835.9,3835.5,2.60719]
[1717397064792,2.60659,3836.5,3835.7,2.60708]
[1717397065162,2.60659,3836.5,3835.8,0.0348732]
[1717397066309,2.60673,3836.3,3835.8,0.0348732]
[1717397066515,0.776,3836.0,3835.6,4.7944]
[1717397066684,0.776,3836.0,3835.7,0.03460989]
[1717397067701,0.776,3836.2,3835.7,0.03460989]
[1717397071838,0.776,3836.0,3835.7,0.03460989]
[1717397071986,0.776,3836.2,3835.7,0.03460989]
[1717397072190,0.776,3836.0,3835.7,0.03460989]
[1717397073021,2.60673,3836.3,3835.7,0.03460989]
[1717397073222,3.38273,3836.3,3835.7,0.03460989]
[1717397075501,0.776,3836.1,3835.7,0.03460989]
[1717397080235,0.776,3835.9,3835.7,0.03460989]
[1717397081735,0.776,3836.1,3835.7,0.03460989]
[1717397083246,2.60683,3836.1,3835.7,0.03460989]
[1717397083410,0.776,3836.0,3835.7,0.03460989]
[1717397084729,0.776,3836.0,3835.3,2.60733]
[1717397084931,3.38283,3836.1,3835.4,0.0346245]
[1717397087122,0.776,3835.5,3835.4,0.0346245]
[1717397087617,0.776,3835.5,3835.1,4.6612]
[1717397087939,0.776,3835.5,3835.2,0.03468899]
[1717397088111,0.776,3835.5,3835.1,4.6612]
[1717397088306,3.38328,3835.5,3835.2,0.03468899]
[1717397088514,3.38328,3835.5,3834.8,4.8201]
[1717397088847,3.38342,3835.3,3834.8,4.8201]
[1717397089042,3.38342,3835.3,3834.9,0.03491711]
[1717397089043,2.60742,3835.3,3834.9,0.03491711]
[1717397089248,0.776,3835.2,3834.9,0.03491711]
[1717397089421,0.776,3835.2,3834.5,4.8201]
[1717397089609,0.776,3835.2,3835.0,0.03488486]
[1717397089813,2.945832,3835.1,3834.0,4.9409]
[1717397090013,3.38349,3835.1,3834.0,5.7169]
[1717397090228,3.38349,3835.1,3834.1,0.03517519]
[1717397090834,3.38349,3835.1,3834.2,4.6923]
[1717397091038,2.60749,3835.1,3834.2,4.6923]
[1717397091344,2.60749,3835.1,3834.3,0.03511066]
[1717397091510,2.60749,3835.1,3834.4,1.24874107]
[1717397091706,0.776,3835.5,3834.5,7.60583614]
[1717397091707,2.60725,3835.5,3834.5,7.60583614]
[1717397091950,7.28,3835.8,3834.8,2.60769]
[1717397092129,7.28,3835.8,3834.9,4.99781711]
[1717397093053,7.28,3835.8,3835.0,2.60754]
[1717397093238,8.056,3835.8,3835.1,0.83813571]
[1717397093423,8.056,3835.8,3835.1,0.87298832]
[1717397093842,7.28,3835.8,3835.1,0.87298832]
[1717397094815,2.60709,3835.7,3835.1,0.87298832]
[1717397095330,3.38309,3835.7,3835.1,0.03485261]
[1717397096040,0.776,3835.5,3835.1,0.03485261]
[1717397097357,2.60709,3835.7,3835.1,0.03485261]
[1717397097653,0.776,3835.6,3835.1,0.03485261]
[1717397100050,2.60709,3835.7,3835.1,0.03485261]
[1717397100466,0.776,3835.6,3835.1,0.03485261]
[1717397100770,3.38309,3835.7,3835.1,0.79538187]
[1717397101065,2.60709,3835.7,3835.1,0.79538187]
[1717397101749,3.38309,3835.7,3835.1,0.79538187]
[1717397102236,0.776,3836.0,3835.3,4.8313]
[1717397102663,0.776,3836.0,3835.4,0.0347586]
[1717397103262,0.776,3835.8,3835.4,0.0347586]
[1717397103764,2.60687,3836.1,3835.4,0.0347586]
[1717397103962,0.776,3835.9,3835.4,0.85815739]
[1717397104931,2.60687,3836.1,3835.4,0.85815739]
[1717397105261,7.28,3836.4,3835.5,2.60721]
[1717397105464,0.75,3836.3,3835.5,2.60721]
[1717397105759,7.28,3836.4,3835.6,0.03469411]
[1717397105921,0.776,3836.1,3835.6,0.03469411]
[1717397106127,0.776,3836.1,3835.7,0.34653029]
[1717397106321,0.776,3836.1,3835.8,0.03462963]
[1717397106559,0.776,3836.1,3835.7,0.34653029]
[1717397106760,0.776,3836.1,3835.8,0.03462963]
[1717397107180,0.776,3836.1,3835.7,0.34653029]
[1717397107459,7.28,3836.4,3835.8,0.03462963]
[1717397107669,0.776,3836.0,3835.8,0.03462963]
[1717397108027,0.776,3836.0,3835.5,2.60721]
[1717397108227,0.776,3836.0,3835.9,0.03457824]
[1717397108550,0.776,3836.0,3835.5,3.43340088]
[1717397108732,0.776,3836.0,3835.6,0.03467496]
[1717397114294,7.28,3836.4,3835.7,2.60707]
[1717397114459,0.776,3836.3,3835.7,2.60707]
[1717397114666,0.776,3836.3,3835.8,0.03448185]
[1717397114887,8.056,3836.4,3835.8,0.03448185]
[1717397115100,8.056,3836.4,3835.7,2.95386358]
[1717397115254,0.776,3836.2,3835.7,2.95386358]
[1717397115594,0.776,3836.2,3835.8,0.03449553]
[1717397115770,0.776,3836.2,3835.7,2.95386358]
[1717397115957,0.776,3836.2,3835.8,0.03449553]
[1717397116157,7.28,3836.4,3836.0,4.7968]
[1717397116356,7.28,3836.4,3836.1,0.03439882]
[1717397116572,0.776,3836.7,3836.1,0.03439882]
[1717397116788,0.776,3836.7,3836.0,4.7968]
[1717397116952,2.60632,3836.9,3836.0,5.6529185]
[1717397117156,0.776,3836.8,3836.1,0.03431948]
[1717397117570,2.6064,3836.7,3836.1,0.03431948]
[1717397118466,2.60616,3837.1,3836.1,0.81031948]
[1717397118689,2.60616,3837.1,3836.3,0.776]
[1717397118690,3.35616,3837.1,3836.3,0.776]
[1717397118898,2.60616,3837.1,3836.3,0.776]
[1717397119074,2.60616,3837.1,3836.4,0.03413251]
[1717397119258,2.60616,3837.1,3836.5,4.8807]
[1717397119462,3.672376,3837.1,3836.5,4.8807]
[1717397119662,3.672376,3837.1,3836.6,0.03407353]
[1717397119883,2.60616,3837.1,3836.6,0.03407353]
[1717397120232,2.60591,3837.5,3836.6,0.03407353]
[1717397120522,0.75,3837.3,3836.7,2.60639]
[1717397120708,3.38191,3837.5,3836.7,2.60639]
[1717397120906,3.38191,3837.5,3836.8,0.03394891]
[1717397121432,2.60591,3837.5,3836.8,0.03394891]
[1717397121724,2.60591,3837.5,3836.8,0.8636528]
[1717397121925,3.38191,3837.5,3836.8,0.8636528]
[1717397123135,2.60591,3837.5,3836.9,4.62]
[1717397123517,2.60591,3837.5,3837.0,0.03380517]
[1717397126801,0.40812746,3837.4,3837.0,0.03380517]
[1717397127000,0.40812746,3837.4,3837.1,0.54835091]
[1717397127200,0.40812746,3837.4,3837.2,0.03343987]
[1717397129306,0.40812746,3837.4,3837.3,4.5961]
[1717397129509,2.60566,3837.8,3837.3,4.5961]
[1717397129841,2.60566,3837.8,3837.3,4.62948031]
[1717397130055,2.60593,3837.4,3837.3,0.03338031]
[1717397130202,7.95203,3837.4,3837.3,0.03338031]
[1717397130399,7.95203,3837.4,3836.1,4.5961]
[1717397130400,2.60636,3836.8,3836.1,4.5961]
[1717397130752,1.036636,3836.7,3836.2,0.03159582]
[1717397130924,0.776,3836.7,3836.2,0.03159582]
[1717397131131,9.88603,3837.3,3836.3,0.776]
[1717397131435,9.88603,3837.3,3836.1,4.5961]
[1717397131436,9.88603,3837.3,3836.4,5.3721]
[1717397131727,9.88603,3837.3,3836.5,0.03149913]
[1717397132052,10.63603,3837.3,3836.5,0.03149913]
[1717397133225,11.885633,3837.3,3836.5,0.03149913]
[1717397133399,2.6062,3837.0,3836.5,0.03149913]
[1717397133602,2.6062,3837.0,3836.0,4.7647]
[1717397133844,2.6062,3837.0,3836.1,0.03162805]
[1717397135181,2.6065,3836.6,3836.1,0.03162805]
[1717397135381,7.51615,3836.5,3835.2,4.8597]
[1717397135539,1.86,3835.8,3835.3,0.03087597]
[1717397135740,1.86,3835.8,3834.2,4.9645]
[1717397135967,1.86,3835.8,3834.3,0.03119852]
[1717397135968,4.9223,3835.6,3834.3,0.03119852]
[1717397136149,4.4674,3835.3,3834.3,0.03119852]
[1717397136356,4.4674,3835.3,3834.2,4.9645]
[1717397136984,2.60765,3834.9,3833.6,7.55127]
[1717397137281,2.60765,3834.9,3833.7,0.03139213]
[1717397137590,4.46782,3834.7,3833.7,0.03139213]
[1717397137737,4.46782,3834.7,3833.1,2.60883]
[1717397137942,4.46782,3834.7,3833.2,0.03155351]
[1717397138342,5.21782,3834.7,3833.2,0.03155351]
[1717397138594,5.21782,3834.7,3833.1,2.60883]
[1717397138875,5.21782,3834.7,3833.2,0.755163]
[1717397138876,2.60801,3834.4,3833.2,0.755163]
[1717397139474,2.60801,3834.4,3833.3,0.03152123]
[1717397139889,2.60801,3834.4,3833.4,2.60864]
[1717397140279,2.60801,3834.4,3833.5,0.03210791]
[1717397141477,3.35801,3834.4,3833.5,0.03210791]
[1717397142392,3.35801,3834.4,3833.6,0.03207563]
[1717397142605,3.35801,3834.4,3833.0,4.9428]
[1717397142771,3.35801,3834.4,3833.1,2.64107703]
[1717397144780,3.35801,3834.4,3833.4,2.60859]
[1717397144962,0.75,3834.4,3833.4,2.60859]
[1717397145169,7.4718,3834.8,3833.4,2.60859]
[1717397145392,2.60792,3834.5,3833.4,2.60859]
[1717397145985,0.75,3834.4,3833.4,2.60859]
[1717397148337,2.60804,3834.3,3832.4,1.86]
[1717397148618,0.335804,3834.2,3833.0,2.6089]
[1717397148774,0.335804,3834.2,3833.1,0.03296763]
[1717397149118,0.55,3834.1,3833.1,0.03296763]
[1717397149297,2.60829,3834.0,3833.1,0.03296763]
[1717397149666,0.55,3833.9,3833.1,0.03296763]
[1717397149938,0.9544094,3833.9,3833.1,0.03296763]
[1717397150385,2.6084,3833.8,3833.1,0.03296763]
[1717397150585,2.60856,3833.6,3832.6,2.60918]
[1717397150786,2.60856,3833.6,3832.7,0.0331762]
[1717397150987,0.75,3833.5,3832.7,0.0331762]
[1717397151210,2.60856,3833.6,3832.7,0.0331762]
[1717397152004,2.60866,3833.4,3832.7,0.0331762]
[1717397152189,0.390866,3833.3,3832.6,2.60918]
[1717397152390,2.60866,3833.4,3832.6,2.60918]
[1717397152391,2.60866,3833.4,3832.7,0.03364181]
[1717397152725,3.35866,3833.4,3832.6,2.60918]
[1717397153079,3.35866,3833.4,3832.7,0.03364181]
[1717397153583,3.35866,3833.4,3832.6,2.60918]
[1717397153797,3.35866,3833.4,3832.7,0.03364181]
[1717397154000,0.335866,3833.3,3832.2,2.60942]
[1717397154333,0.335866,3833.3,3832.3,0.03377099]
[1717397154709,3.35866,3833.4,3832.3,0.03377099]
[1717397155207,3.35866,3833.4,3832.4,2.60928]
[1717397155415,3.35866,3833.4,3832.5,0.0337064]
[1717397160844,8.28896,3833.4,3832.5,0.0337064]
[1717397161158,2.6089,3833.1,3832.5,0.0337064]
[1717397161454,2.6089,3833.1,3832.6,0.03374809]
[1717397161760,3.62382,3833.1,3832.6,0.03374809]
[1717397162043,3.62382,3833.1,3832.7,0.0337158]
[1717397162410,3.62382,3833.1,3832.0,2.60958]
[1717397162604,2.6089,3833.1,3832.0,2.60958]
[1717397162809,2.6089,3833.1,3832.1,0.03436992]
[1717397163838,2.6089,3833.1,3832.2,2.60945]
[1717397164207,2.6089,3833.1,3832.3,0.03427243]
[1717397166542,3.3589,3833.1,3832.3,0.03427243]
[1717397166842,4.37382,3833.1,3832.3,0.03427243]
[1717397167047,2.6091,3832.8,3832.3,0.03427243]
[1717397167403,2.6091,3832.8,3831.8,2.60969]
[1717397167747,0.75,3833.1,3832.2,4.9242]
[1717397167916,0.75,3833.1,3832.3,0.753371]
[1717397168107,0.75,3833.1,3832.3,0.78766262]
[1717397168844,2.60901,3832.9,3832.1,2.60951]
[1717397169320,2.60901,3832.9,3832.2,0.03437874]
[1717397170450,4.7387,3832.8,3831.7,7.43124]
[1717397170618,4.7387,3832.8,3832.3,0.03434644]
[1717397170821,2.60913,3832.7,3831.7,7.43124]
[1717397171029,2.60913,3832.7,3831.8,0.03450794]
[1717397171343,2.60927,3832.5,3831.8,0.03450794]
[1717397172081,2.60927,3832.5,3831.9,0.03447564]
[1717397172209,3.35927,3832.5,3831.9,0.03447564]
[1717397172414,3.35927,3832.5,3831.7,2.60974]
[1717397172714,4.169067,3832.5,3831.7,2.60974]
[1717397173659,4.169067,3832.5,3831.3,2.61002]
[1717397173842,2.60947,3832.2,3831.3,2.61002]
[1717397174159,2.60947,3832.2,3831.4,0.03476328]
[1717397174322,0.55,3832.1,3831.4,0.03476328]
[1717397174512,2.60947,3832.2,3831.4,0.03476328]
[1717397174880,2.60947,3832.2,3831.3,2.61002]
[1717397175034,2.60947,3832.2,3831.3,2.871022]
[1717397175217,0.75,3832.5,3831.6,2.60985]
[1717397176517,0.75,3832.5,3831.9,2.60965]
[1717397176827,7.28,3832.8,3832.1,2.60946]
[1717397177210,7.28,3832.8,3832.3,2.60939]
[1717397178281,14.2452,3833.7,3832.6,2.60915]
[1717397178414,0.75,3833.2,3832.6,2.60915]
[1717397178763,6.9652,3833.7,3832.7,0.03431321]
[1717397179259,6.9652,3833.7,3832.6,2.60915]
[1717397179260,0.75,3833.5,3832.6,2.60915]
[1717397179456,0.75,3833.5,3832.8,0.03428092]
[1717397179620,0.75,3833.5,3832.8,2.60901]
[1717397179819,0.75,3833.5,3832.9,0.03424864]
[1717397180243,0.75,3833.5,3833.0,2.60889]
[1717397180519,2.60823,3834.1,3833.1,0.03412377]
[1717397180520,7.23743,3834.1,3833.1,0.03412377]
[1717397180738,0.75,3833.7,3833.1,0.03412377]
[1717397181229,3.0,3834.0,3833.1,0.03412377]
[1717397181549,0.75,3833.8,3833.0,2.60889]
[1717397183539,0.75,3833.8,3833.1,0.03408814]
[1717397185620,3.35839,3833.8,3833.1,0.03408814]
[1717397185931,3.35839,3833.8,3833.0,2.60889]
[1717397186164,3.35839,3833.8,3833.2,0.03370779]
[1717397186321,4.457149,3833.8,3833.1,0.03374007]
[1717397186716,4.457149,3833.8,3833.0,2.60889]
[1717397188823,3.35839,3833.8,3833.0,2.60889]
[1717397189256,3.35839,3833.8,3833.1,0.03374007]
[1717397189472,3.35839,3833.8,3833.0,2.60889]
[1717397189830,3.35839,3833.8,3833.1,0.03374007]
[1717397190022,3.35839,3833.8,3833.0,2.60889]
[1717397190437,3.35839,3833.8,3833.1,0.03374007]
[1717397190640,3.35839,3833.8,3833.0,2.60889]
[1717397190974,3.35839,3833.8,3833.1,0.03374007]
[1717397191392,3.35839,3833.8,3833.0,2.60889]
[1717397191771,3.35839,3833.8,3833.1,0.03374007]
[1717397192154,3.35839,3833.8,3833.0,2.60889]
[1717397192352,3.35839,3833.8,3833.2,0.03370779]
[1717397192583,4.457149,3833.8,3833.1,0.03374007]
[1717397192790,4.457149,3833.8,3833.0,2.60889]
[1717397192971,4.457149,3833.8,3833.2,0.03370779]
[1717397192972,2.60861,3833.5,3833.2,0.03370779]
[1717397193295,0.55,3833.4,3832.4,7.05103]
[1717397193458,1.560861,3833.4,3832.4,7.05103]
[1717397193664,1.560861,3833.4,3832.5,0.03280829]
[1717397196588,2.60873,3833.3,3832.5,0.03280829]
[1717397197099,0.75,3833.2,3832.5,0.03280829]
[1717397197300,0.8547291,3833.1,3832.5,0.03280829]
[1717397197596,2.60873,3833.3,3832.4,7.05103]
[1717397197757,0.75,3833.3,3832.4,7.05103]
[1717397198158,3.0,3833.6,3832.4,7.05103]
[1717397198394,0.75,3833.4,3832.4,7.05103]
[1717397198579,2.6088,3833.2,3832.4,7.05103]
[1717397198761,2.94468,3833.2,3832.4,7.05103]
[1717397198953,3.69468,3833.2,3832.4,7.05103]
[1717397201371,3.69468,3833.2,3832.4,2.60933]
[1717397201569,3.69468,3833.2,3832.1,7.41553]
[1717397201791,3.69468,3833.2,3832.5,0.03286578]
[1717397201974,3.69468,3833.2,3832.1,7.41553]
[1717397202188,3.69468,3833.2,3832.6,0.03283349]
[1717397202378,3.69468,3833.2,3832.1,7.41553]
[1717397202578,3.69468,3833.2,3832.7,0.0328012]
[1717397202901,0.369468,3833.1,3832.1,7.41553]
[1717397203104,3.3588,3833.2,3832.1,7.41553]
[1717397203605,3.3588,3833.2,3832.2,0.03296267]